[Event "Titled Tuesday Blitz June 07 Early 2022"]
[White "Urazayev, Arystanbek"]
[Black "Bluebaum, Matthias"]
[WhiteFideId "13709810"]
[BlackFideId "24651516"]
[WhiteElo "2422"]
[BlackElo "2556"]
[Result "1-0"]
[Round "04"]
[TimeControl "180+1"]
[Date "2022.06.07"]
[WhiteClock "0:00:45"]
[BlackClock "0:00:13"]

1. e4 {[%clk 0:03:00]}  c6 {[%clk 0:02:59]} 2. d4 {[%clk 0:03:00]}  d5 {[%clk 0:03:00]} 3. Nd2 {[%clk 0:03:01]}  dxe4 {[%clk 0:03:00]} 4. Nxe4 {[%clk 0:03:02]}  Nf6 {[%clk 0:03:00]} 5. Nxf6+ {[%clk 0:03:01]}  exf6 {[%clk 0:03:01]} 6. c3 {[%clk 0:03:02]}  Bd6 {[%clk 0:03:01]} 7. Bd3 {[%clk 0:03:03]}  O-O {[%clk 0:03:02]} 8. Qc2 {[%clk 0:03:03]}  Re8+ {[%clk 0:03:02]} 9. Be3 {[%clk 0:03:04]}  h5 {[%clk 0:03:01]} 10. Nf3 {[%clk 0:03:04]}  Nd7 {[%clk 0:02:57]} 11. O-O-O {[%clk 0:03:03]}  Nf8 {[%clk 0:02:56]} 12. h3 {[%clk 0:03:01]}  Be6 {[%clk 0:02:56]} 13. g4 {[%clk 0:02:54]}  Bd5 {[%clk 0:02:56]} 14. Nh4 {[%clk 0:02:53]}  Qa5 {[%clk 0:02:33]} 15. Nf5 {[%clk 0:02:50]}  Rad8 {[%clk 0:02:11]} 16. gxh5 {[%clk 0:02:47]}  Bxh1 {[%clk 0:01:50]} 17. Rxh1 {[%clk 0:02:47]}  Qxa2 {[%clk 0:01:49]} 18. Qd1 {[%clk 0:02:19]}  Qa1+ {[%clk 0:01:20]} 19. Bb1 {[%clk 0:02:19]}  Ba3 {[%clk 0:01:21]} 20. Qb3 {[%clk 0:02:07]}  Bxb2+ {[%clk 0:00:47]} 21. Qxb2 {[%clk 0:02:07]}  Qa5 {[%clk 0:00:48]} 22. Rg1 {[%clk 0:02:02]}  Ne6 {[%clk 0:00:48]} 23. Nxg7 {[%clk 0:01:59]}  Nxg7 {[%clk 0:00:36]} 24. h6 {[%clk 0:01:59]}  Rd5 {[%clk 0:00:35]} 25. Rxg7+ {[%clk 0:01:59]}  Kf8 {[%clk 0:00:36]} 26. Qb4+ {[%clk 0:01:31]}  Qxb4 {[%clk 0:00:36]} 27. cxb4 {[%clk 0:01:32]}  Rh5 {[%clk 0:00:29]} 28. Rg3 {[%clk 0:01:17]}  f5 {[%clk 0:00:23]} 29. d5 {[%clk 0:01:10]}  Rc8 {[%clk 0:00:20]} 30. Bc5+ {[%clk 0:01:09]}  Ke8 {[%clk 0:00:20]} 31. d6 {[%clk 0:01:01]}  b6 {[%clk 0:00:17]} 32. h7 {[%clk 0:01:02]}  bxc5 {[%clk 0:00:12]} 33. Bxf5 {[%clk 0:00:58]}  Rxf5 {[%clk 0:00:10]} 34. Rg8+ {[%clk 0:00:53]}  Kd7 {[%clk 0:00:11]} 35. h8=Q {[%clk 0:00:52]}  Rxg8 {[%clk 0:00:10]} 36. Qxg8 {[%clk 0:00:53]}  Kxd6 {[%clk 0:00:10]} 37. Qf8+ {[%clk 0:00:52]}  Ke6 {[%clk 0:00:09]} 38. bxc5 {[%clk 0:00:51]}  Rxf2 {[%clk 0:00:09]} 39. Qd6+ {[%clk 0:00:52]}  Kf5 {[%clk 0:00:10]} 40. Qxc6 {[%clk 0:00:52]}  Kf4 {[%clk 0:00:09]} 41. Qd6+ {[%clk 0:00:49]}  Ke3 {[%clk 0:00:09]} 42. c6 {[%clk 0:00:49]}  f5 {[%clk 0:00:10]} 43. c7 {[%clk 0:00:49]}  f4 {[%clk 0:00:11]} 44. c8=Q {[%clk 0:00:46]}  Rf1+ {[%clk 0:00:11]} 45. Kc2 {[%clk 0:00:46]}  Rf2+ {[%clk 0:00:12]} 46. Kc3 {[%clk 0:00:46]}  Kf3 {[%clk 0:00:13]} 47. Qg4+ {[%clk 0:00:45]}  Ke3 {[%clk 0:00:13]} 48. Qd3# {[%clk 0:00:45]} 1-0


[Site "https://www.chess.com"]

[Event "Titled Tuesday Blitz June 07 Early 2022"]
[White "Vokhidov, Shamsiddin"]
[Black "Akbas, Umut Ata"]
[WhiteFideId "14204223"]
[BlackFideId "44572646"]
[WhiteElo "2611"]
[BlackElo "1590"]
[Result "1-0"]
[Round "04"]
[TimeControl "180+1"]
[Date "2022.06.07"]
[WhiteClock "0:02:33"]
[BlackClock "0:02:39"]

1. e4 {[%clk 0:03:00]}  e5 {[%clk 0:02:58]} 2. Nf3 {[%clk 0:03:01]}  Nc6 {[%clk 0:02:59]} 3. Nc3 {[%clk 0:03:02]}  Nf6 {[%clk 0:02:59]} 4. a3 {[%clk 0:03:03]}  Be7 {[%clk 0:02:58]} 5. d4 {[%clk 0:03:01]}  exd4 {[%clk 0:02:58]} 6. Nxd4 {[%clk 0:03:02]}  O-O {[%clk 0:02:58]} 7. Nxc6 {[%clk 0:03:02]}  dxc6 {[%clk 0:02:58]} 8. Bd3 {[%clk 0:03:03]}  b6 {[%clk 0:02:55]} 9. O-O {[%clk 0:03:01]}  Bb7 {[%clk 0:02:55]} 10. e5 {[%clk 0:02:51]}  Nd5 {[%clk 0:02:55]} 11. Ne4 {[%clk 0:02:51]}  b5 {[%clk 0:02:45]} 12. Qh5 {[%clk 0:02:49]}  g6 {[%clk 0:02:42]} 13. Qh6 {[%clk 0:02:50]}  Re8 {[%clk 0:02:40]} 14. Ng5 {[%clk 0:02:34]}  Bxg5 {[%clk 0:02:39]} 15. Bxg5 {[%clk 0:02:35]}  Qc8 {[%clk 0:02:39]} 16. Bf6 {[%clk 0:02:33]} 1-0


[Site "https://www.chess.com"]

[Event "Titled Tuesday Blitz June 07 Early 2022"]
[White "Volkov, Maksim"]
[Black "Aitbayev, Aslan"]
[WhiteFideId "54123070"]
[BlackFideId "13704613"]
[WhiteElo "2155"]
[BlackElo "2385"]
[Result "0-1"]
[Round "04"]
[TimeControl "180+1"]
[Date "2022.06.07"]
[WhiteClock "0:00:07"]
[BlackClock "0:00:09"]

1. d4 {[%clk 0:03:00]}  d6 {[%clk 0:03:00]} 2. c4 {[%clk 0:03:01]}  g6 {[%clk 0:03:00]} 3. Nf3 {[%clk 0:03:01]}  Bg7 {[%clk 0:03:00]} 4. g3 {[%clk 0:03:02]}  Bg4 {[%clk 0:02:59]} 5. Bg2 {[%clk 0:03:01]}  Qc8 {[%clk 0:02:59]} 6. h3 {[%clk 0:02:54]}  Bd7 {[%clk 0:02:58]} 7. Nc3 {[%clk 0:02:55]}  Nf6 {[%clk 0:02:57]} 8. Bg5 {[%clk 0:02:47]}  O-O {[%clk 0:02:55]} 9. Qd2 {[%clk 0:02:46]}  Nc6 {[%clk 0:02:48]} 10. Bh6 {[%clk 0:02:44]}  e5 {[%clk 0:02:38]} 11. dxe5 {[%clk 0:02:29]}  dxe5 {[%clk 0:02:34]} 12. Bxg7 {[%clk 0:02:28]}  Kxg7 {[%clk 0:02:34]} 13. g4 {[%clk 0:02:23]}  Be6 {[%clk 0:02:18]} 14. b3 {[%clk 0:02:17]}  Qd8 {[%clk 0:01:26]} 15. Qe3 {[%clk 0:02:10]}  Nd7 {[%clk 0:01:02]} 16. Rd1 {[%clk 0:02:04]}  Qe7 {[%clk 0:00:54]} 17. Ng5 {[%clk 0:01:52]}  Rad8 {[%clk 0:00:48]} 18. O-O {[%clk 0:01:50]}  Nd4 {[%clk 0:00:35]} 19. f4 {[%clk 0:01:08]}  f6 {[%clk 0:00:23]} 20. Nxe6+ {[%clk 0:01:04]}  Nxe6 {[%clk 0:00:22]} 21. f5 {[%clk 0:00:57]}  Qc5 {[%clk 0:00:15]} 22. Qxc5 {[%clk 0:00:39]}  Nexc5 {[%clk 0:00:16]} 23. b4 {[%clk 0:00:38]}  Na6 {[%clk 0:00:16]} 24. a3 {[%clk 0:00:38]}  c6 {[%clk 0:00:16]} 25. Rd6 {[%clk 0:00:34]}  Nb6 {[%clk 0:00:16]} 26. c5 {[%clk 0:00:21]}  Nc4 {[%clk 0:00:16]} 27. Rxd8 {[%clk 0:00:20]}  Rxd8 {[%clk 0:00:17]} 28. fxg6 {[%clk 0:00:16]}  hxg6 {[%clk 0:00:17]} 29. Ne4 {[%clk 0:00:16]}  Rf8 {[%clk 0:00:17]} 30. g5 {[%clk 0:00:14]}  fxg5 {[%clk 0:00:15]} 31. Rxf8 {[%clk 0:00:15]}  Kxf8 {[%clk 0:00:15]} 32. Nxg5 {[%clk 0:00:16]}  Nxa3 {[%clk 0:00:15]} 33. Ne6+ {[%clk 0:00:15]}  Ke7 {[%clk 0:00:15]} 34. Ng5 {[%clk 0:00:14]}  Nxb4 {[%clk 0:00:15]} 35. h4 {[%clk 0:00:12]}  a5 {[%clk 0:00:15]} 36. Ne4 {[%clk 0:00:12]}  Nc4 {[%clk 0:00:12]} 37. Nc3 {[%clk 0:00:12]}  Nb2 {[%clk 0:00:11]} 38. Be4 {[%clk 0:00:11]}  Kf6 {[%clk 0:00:10]} 39. Kf2 {[%clk 0:00:07]}  a4 {[%clk 0:00:11]} 40. Nb1 {[%clk 0:00:08]}  Nc4 {[%clk 0:00:10]} 41. Bd3 {[%clk 0:00:06]}  Nxd3+ {[%clk 0:00:09]} 42. exd3 {[%clk 0:00:07]}  Na5 {[%clk 0:00:09]} 0-1


[Site "https://www.chess.com"]

[Event "Titled Tuesday Blitz June 07 Early 2022"]
[White "Yang, Kaiqi"]
[Black "Asadli, Vugar"]
[WhiteFideId "8604398"]
[BlackFideId "13405764"]
[WhiteElo "2373"]
[BlackElo "2635"]
[Result "0-1"]
[Round "04"]
[TimeControl "180+1"]
[Date "2022.06.07"]
[WhiteClock "0:00:03"]
[BlackClock "0:01:04"]

1. d4 {[%clk 0:03:00]}  g6 {[%clk 0:02:59]} 2. h4 {[%clk 0:02:57]}  Nf6 {[%clk 0:02:59]} 3. c4 {[%clk 0:02:57]}  Bg7 {[%clk 0:02:57]} 4. Nc3 {[%clk 0:02:56]}  O-O {[%clk 0:02:51]} 5. h5 {[%clk 0:02:56]}  Nxh5 {[%clk 0:02:49]} 6. e4 {[%clk 0:02:56]}  d6 {[%clk 0:02:45]} 7. g4 {[%clk 0:02:48]}  Nf6 {[%clk 0:02:44]} 8. g5 {[%clk 0:02:35]}  Nfd7 {[%clk 0:02:44]} 9. f4 {[%clk 0:02:33]}  c5 {[%clk 0:02:38]} 10. d5 {[%clk 0:02:32]}  e6 {[%clk 0:02:34]} 11. Qc2 {[%clk 0:01:52]}  exd5 {[%clk 0:02:32]} 12. Qh2 {[%clk 0:01:50]}  h5 {[%clk 0:02:24]} 13. gxh6 {[%clk 0:01:49]}  Bxc3+ {[%clk 0:02:24]} 14. bxc3 {[%clk 0:01:49]}  dxe4 {[%clk 0:02:25]} 15. h7+ {[%clk 0:01:42]}  Kh8 {[%clk 0:02:25]} 16. f5 {[%clk 0:01:40]}  Nf6 {[%clk 0:02:13]} 17. Bg5 {[%clk 0:01:35]}  Nbd7 {[%clk 0:02:09]} 18. Qxd6 {[%clk 0:01:29]}  b5 {[%clk 0:02:06]} 19. Rd1 {[%clk 0:01:03]}  Bb7 {[%clk 0:02:04]} 20. Nh3 {[%clk 0:00:49]}  Qb6 {[%clk 0:02:00]} 21. Nf4 {[%clk 0:00:37]}  gxf5 {[%clk 0:01:55]} 22. Rh6 {[%clk 0:00:31]}  Ng4 {[%clk 0:01:47]} 23. Qe7 {[%clk 0:00:06]}  Rae8 {[%clk 0:01:29]} 24. Qxd7 {[%clk 0:00:05]}  Qa5 {[%clk 0:01:27]} 25. Bf6+ {[%clk 0:00:02]}  Nxf6 {[%clk 0:01:26]} 26. Rxf6 {[%clk 0:00:02]}  Qxc3+ {[%clk 0:01:27]} 27. Kf2 {[%clk 0:00:03]}  Qf3+ {[%clk 0:01:23]} 28. Ke1 {[%clk 0:00:02]}  Qg3+ {[%clk 0:01:18]} 29. Kd2 {[%clk 0:00:02]}  Qxf4+ {[%clk 0:01:18]} 30. Kc2 {[%clk 0:00:02]}  Bc8 {[%clk 0:01:11]} 31. Qd6 {[%clk 0:00:01]}  Qg5 {[%clk 0:01:07]} 32. Be2 {[%clk 0:00:01]}  Be6 {[%clk 0:01:07]} 33. Rxe6 {[%clk 0:00:01]}  fxe6 {[%clk 0:01:06]} 34. Qe5+ {[%clk 0:00:01]}  Qf6 {[%clk 0:01:06]} 35. Qf4 {[%clk 0:00:02]}  b4 {[%clk 0:01:05]} 36. Rd7 {[%clk 0:00:02]}  Qc3+ {[%clk 0:01:05]} 37. Kd1 {[%clk 0:00:01]}  Rd8 {[%clk 0:01:03]} 38. Qd6 {[%clk 0:00:01]}  Rxd7 {[%clk 0:01:03]} 39. Qxd7 {[%clk 0:00:02]}  Qd4+ {[%clk 0:01:03]} 40. Qxd4+ {[%clk 0:00:02]}  cxd4 {[%clk 0:01:04]} 41. c5 {[%clk 0:00:03]}  d3 {[%clk 0:01:04]} 0-1


[Site "https://www.chess.com"]

[Event "Titled Tuesday Blitz June 07 Early 2022"]
[White "Andreikin, Dmitry"]
[Black "Maghsoodloo, Parham"]
[WhiteFideId "4158814"]
[BlackFideId "12539929"]
[WhiteElo "2736"]
[BlackElo "2607"]
[Result "0-1"]
[Round "05"]
[TimeControl "180+1"]
[Date "2022.06.07"]
[WhiteClock "0:00:01"]
[BlackClock "0:00:17"]

1. d4 {[%clk 0:03:00]}  Nf6 {[%clk 0:02:59]} 2. c4 {[%clk 0:03:00]}  e6 {[%clk 0:02:52]} 3. Nf3 {[%clk 0:02:59]}  d5 {[%clk 0:02:52]} 4. g3 {[%clk 0:02:57]}  Be7 {[%clk 0:02:53]} 5. Bg2 {[%clk 0:02:57]}  O-O {[%clk 0:02:53]} 6. O-O {[%clk 0:02:57]}  dxc4 {[%clk 0:02:53]} 7. Qc2 {[%clk 0:02:57]}  b5 {[%clk 0:02:53]} 8. a4 {[%clk 0:02:56]}  b4 {[%clk 0:02:52]} 9. Nfd2 {[%clk 0:02:52]}  Nd5 {[%clk 0:02:52]} 10. Nxc4 {[%clk 0:02:51]}  c5 {[%clk 0:02:35]} 11. dxc5 {[%clk 0:02:46]}  Ba6 {[%clk 0:02:35]} 12. Nbd2 {[%clk 0:02:40]}  Nd7 {[%clk 0:02:33]} 13. e4 {[%clk 0:02:34]}  N5f6 {[%clk 0:02:26]} 14. c6 {[%clk 0:02:23]}  Nc5 {[%clk 0:02:26]} 15. Nb3 {[%clk 0:02:10]}  Nxb3 {[%clk 0:02:25]} 16. Qxb3 {[%clk 0:02:10]}  Qd4 {[%clk 0:02:25]} 17. Na5 {[%clk 0:01:50]}  Ng4 {[%clk 0:02:17]} 18. Qd1 {[%clk 0:01:25]}  Qxd1 {[%clk 0:02:04]} 19. Rxd1 {[%clk 0:01:25]}  Bc5 {[%clk 0:02:04]} 20. Rd2 {[%clk 0:01:11]}  Rad8 {[%clk 0:01:54]} 21. Bf3 {[%clk 0:01:04]}  Ne5 {[%clk 0:01:36]} 22. Kg2 {[%clk 0:00:58]}  Bb6 {[%clk 0:01:31]} 23. Rxd8 {[%clk 0:00:34]}  Rxd8 {[%clk 0:01:31]} 24. c7 {[%clk 0:00:23]}  Rd7 {[%clk 0:00:50]} 25. Bf4 {[%clk 0:00:18]}  Nxf3 {[%clk 0:00:49]} 26. Rc1 {[%clk 0:00:18]}  Ne1+ {[%clk 0:00:35]} 27. Kg1 {[%clk 0:00:14]}  Bc8 {[%clk 0:00:32]} 28. Nc4 {[%clk 0:00:08]}  Nd3 {[%clk 0:00:31]} 29. Nxb6 {[%clk 0:00:08]}  axb6 {[%clk 0:00:31]} 30. Rc6 {[%clk 0:00:07]}  Nxf4 {[%clk 0:00:31]} 31. gxf4 {[%clk 0:00:08]}  Kf8 {[%clk 0:00:31]} 32. f3 {[%clk 0:00:06]}  Ke7 {[%clk 0:00:30]} 33. Rxb6 {[%clk 0:00:06]}  Rxc7 {[%clk 0:00:29]} 34. Rxb4 {[%clk 0:00:07]}  Rc2 {[%clk 0:00:29]} 35. Rb6 {[%clk 0:00:07]}  Kd7 {[%clk 0:00:24]} 36. a5 {[%clk 0:00:07]}  Kc7 {[%clk 0:00:24]} 37. b4 {[%clk 0:00:08]}  Rb2 {[%clk 0:00:20]} 38. h4 {[%clk 0:00:07]}  g6 {[%clk 0:00:19]} 39. Rb5 {[%clk 0:00:07]}  Bd7 {[%clk 0:00:19]} 40. Rb6 {[%clk 0:00:05]}  Bc6 {[%clk 0:00:19]} 41. Kf1 {[%clk 0:00:03]}  f5 {[%clk 0:00:18]} 42. e5 {[%clk 0:00:02]}  h5 {[%clk 0:00:17]} 43. Kg1 {[%clk 0:00:02]}  Bxf3 {[%clk 0:00:16]} 44. Rxe6 {[%clk 0:00:01]}  Rxb4 {[%clk 0:00:16]} 45. Rxg6 {[%clk 0:00:01]}  Rxf4 {[%clk 0:00:16]} 46. a6 {[%clk 0:00:01]}  Rg4+ {[%clk 0:00:14]} 47. Rxg4 {[%clk 0:00:02]}  fxg4 {[%clk 0:00:15]} 48. Kf2 {[%clk 0:00:02]}  Kd7 {[%clk 0:00:15]} 49. Kg3 {[%clk 0:00:02]}  Ke6 {[%clk 0:00:16]} 50. Kf4 {[%clk 0:00:02]}  Bd5 {[%clk 0:00:16]} 51. a7 {[%clk 0:00:01]}  Ba8 {[%clk 0:00:16]} 52. Kg5 {[%clk 0:00:01]}  g3 {[%clk 0:00:16]} 53. Kxh5 {[%clk 0:00:01]}  g2 {[%clk 0:00:17]} 54. Kg4 {[%clk 0:00:01]}  g1=Q+ {[%clk 0:00:17]} 0-1


[Site "https://www.chess.com"]

[Event "Titled Tuesday Blitz June 07 Early 2022"]
[White "Babazada, Khazar"]
[Black "Mustafayev, Farid"]
[WhiteFideId "13413554"]
[BlackFideId "13408771"]
[WhiteElo "2406"]
[BlackElo "2115"]
[Result "1-0"]
[Round "05"]
[TimeControl "180+1"]
[Date "2022.06.07"]
[WhiteClock "0:01:10"]
[BlackClock "0:01:07"]

1. Nf3 {[%clk 0:03:00]}  Nf6 {[%clk 0:02:55]} 2. g3 {[%clk 0:03:01]}  g6 {[%clk 0:02:54]} 3. Bg2 {[%clk 0:03:02]}  Bg7 {[%clk 0:02:55]} 4. O-O {[%clk 0:03:01]}  O-O {[%clk 0:02:55]} 5. c4 {[%clk 0:03:00]}  d6 {[%clk 0:02:54]} 6. d4 {[%clk 0:03:00]}  Nc6 {[%clk 0:02:54]} 7. Nc3 {[%clk 0:03:00]}  e5 {[%clk 0:02:53]} 8. e4 {[%clk 0:03:01]}  Bg4 {[%clk 0:02:51]} 9. d5 {[%clk 0:02:58]}  Nd4 {[%clk 0:02:51]} 10. Be3 {[%clk 0:02:57]}  Nxf3+ {[%clk 0:02:39]} 11. Bxf3 {[%clk 0:02:55]}  Bxf3 {[%clk 0:02:39]} 12. Qxf3 {[%clk 0:02:56]}  Nd7 {[%clk 0:02:40]} 13. g4 {[%clk 0:02:38]}  Qh4 {[%clk 0:02:32]} 14. Qg3 {[%clk 0:02:32]}  Qxg3+ {[%clk 0:02:30]} 15. hxg3 {[%clk 0:02:33]}  f5 {[%clk 0:02:06]} 16. gxf5 {[%clk 0:02:28]}  gxf5 {[%clk 0:02:07]} 17. exf5 {[%clk 0:02:29]}  Rxf5 {[%clk 0:02:08]} 18. Ne4 {[%clk 0:02:29]}  h6 {[%clk 0:02:06]} 19. Kg2 {[%clk 0:02:27]}  Raf8 {[%clk 0:02:03]} 20. Rh1 {[%clk 0:02:15]}  Nf6 {[%clk 0:01:59]} 21. Nxf6+ {[%clk 0:02:07]}  R5xf6 {[%clk 0:02:00]} 22. Rh4 {[%clk 0:02:04]}  a6 {[%clk 0:01:58]} 23. b4 {[%clk 0:02:00]}  Rd8 {[%clk 0:01:52]} 24. a4 {[%clk 0:01:58]}  Rg6 {[%clk 0:01:46]} 25. a5 {[%clk 0:01:52]}  c6 {[%clk 0:01:36]} 26. Rd1 {[%clk 0:01:33]}  Rc8 {[%clk 0:01:33]} 27. c5 {[%clk 0:01:20]}  Bf8 {[%clk 0:01:23]} 28. cxd6 {[%clk 0:01:12]}  Rxd6 {[%clk 0:01:22]} 29. Bc5 {[%clk 0:01:11]}  Rxd5 {[%clk 0:01:21]} 30. Rxd5 {[%clk 0:01:10]}  cxd5 {[%clk 0:01:20]} 31. Bxf8 {[%clk 0:01:10]}  Kxf8 {[%clk 0:01:20]} 32. Rxh6 {[%clk 0:01:11]}  d4 {[%clk 0:01:07]} 33. Rh8+ {[%clk 0:01:10]} 1-0


[Site "https://www.chess.com"]

[Event "Titled Tuesday Blitz June 07 Early 2022"]
[White "Bluebaum, Matthias"]
[Black "Papasimakopoulos, Alexandros"]
[WhiteFideId "24651516"]
[BlackFideId "4244125"]
[WhiteElo "2556"]
[BlackElo "2340"]
[Result "1/2-1/2"]
[Round "05"]
[TimeControl "180+1"]
[Date "2022.06.07"]
[WhiteClock "0:00:18"]
[BlackClock "0:00:27"]

1. d4 {[%clk 0:03:00]}  f5 {[%clk 0:02:58]} 2. Nf3 {[%clk 0:03:00]}  Nf6 {[%clk 0:02:58]} 3. c4 {[%clk 0:03:01]}  g6 {[%clk 0:02:58]} 4. e3 {[%clk 0:03:01]}  Bg7 {[%clk 0:02:59]} 5. b4 {[%clk 0:03:02]}  O-O {[%clk 0:02:59]} 6. Be2 {[%clk 0:03:02]}  c6 {[%clk 0:02:44]} 7. a4 {[%clk 0:03:02]}  d5 {[%clk 0:02:44]} 8. O-O {[%clk 0:03:01]}  Ne4 {[%clk 0:02:44]} 9. Bb2 {[%clk 0:03:01]}  Be6 {[%clk 0:02:44]} 10. Nbd2 {[%clk 0:03:00]}  Nd7 {[%clk 0:02:42]} 11. Nxe4 {[%clk 0:02:58]}  fxe4 {[%clk 0:02:33]} 12. Ng5 {[%clk 0:02:58]}  Rf6 {[%clk 0:02:30]} 13. Nxe6 {[%clk 0:02:56]}  Rxe6 {[%clk 0:02:30]} 14. Qb3 {[%clk 0:02:51]}  Nf6 {[%clk 0:02:25]} 15. b5 {[%clk 0:02:49]}  Rd6 {[%clk 0:02:16]} 16. Ba3 {[%clk 0:02:48]}  Rd7 {[%clk 0:02:15]} 17. Rab1 {[%clk 0:02:46]}  e6 {[%clk 0:02:14]} 18. Rfc1 {[%clk 0:02:45]}  Rc8 {[%clk 0:02:10]} 19. bxc6 {[%clk 0:02:40]}  bxc6 {[%clk 0:02:01]} 20. cxd5 {[%clk 0:02:34]}  exd5 {[%clk 0:01:54]} 21. Ba6 {[%clk 0:02:30]}  Rcc7 {[%clk 0:01:55]} 22. Qb8 {[%clk 0:02:30]}  Bf8 {[%clk 0:01:50]} 23. Bxf8 {[%clk 0:02:26]}  Kxf8 {[%clk 0:01:48]} 24. a5 {[%clk 0:02:19]}  Qxb8 {[%clk 0:01:46]} 25. Rxb8+ {[%clk 0:02:20]}  Ke7 {[%clk 0:01:47]} 26. h3 {[%clk 0:02:15]}  Kd6 {[%clk 0:01:46]} 27. Rcb1 {[%clk 0:01:49]}  c5 {[%clk 0:01:46]} 28. Bb5 {[%clk 0:01:47]}  Re7 {[%clk 0:01:42]} 29. dxc5+ {[%clk 0:01:40]}  Rxc5 {[%clk 0:01:43]} 30. a6 {[%clk 0:01:40]}  Nd7 {[%clk 0:01:33]} 31. Rd8 {[%clk 0:00:56]}  Rc7 {[%clk 0:01:31]} 32. Be2 {[%clk 0:00:45]}  Ke5 {[%clk 0:01:26]} 33. f4+ {[%clk 0:00:37]}  exf3 {[%clk 0:01:25]} 34. Bxf3 {[%clk 0:00:37]}  Nf6 {[%clk 0:01:15]} 35. Kh2 {[%clk 0:00:33]}  Rcd7 {[%clk 0:01:06]} 36. Rdb8 {[%clk 0:00:31]}  Re6 {[%clk 0:01:03]} 37. Ra1 {[%clk 0:00:27]}  Rdd6 {[%clk 0:01:02]} 38. Be2 {[%clk 0:00:26]}  Rb6 {[%clk 0:00:57]} 39. Rb7 {[%clk 0:00:25]}  Rxb7 {[%clk 0:00:41]} 40. axb7 {[%clk 0:00:26]}  Rb6 {[%clk 0:00:42]} 41. Rxa7 {[%clk 0:00:26]}  Nd7 {[%clk 0:00:41]} 42. b8=Q+ {[%clk 0:00:21]}  Nxb8 {[%clk 0:00:41]} 43. Rxh7 {[%clk 0:00:22]}  Nc6 {[%clk 0:00:35]} 44. Rg7 {[%clk 0:00:21]}  Kf6 {[%clk 0:00:35]} 45. Rd7 {[%clk 0:00:21]}  Ne7 {[%clk 0:00:30]} 46. Bf3 {[%clk 0:00:21]}  Re6 {[%clk 0:00:28]} 47. Bxd5 {[%clk 0:00:16]}  Nxd5 {[%clk 0:00:28]} 48. Rxd5 {[%clk 0:00:17]}  Rxe3 {[%clk 0:00:29]} 49. Rd6+ {[%clk 0:00:17]}  Kg7 {[%clk 0:00:29]} 50. Rc6 {[%clk 0:00:17]}  Ra3 {[%clk 0:00:28]} 51. Rd6 {[%clk 0:00:17]}  Rb3 {[%clk 0:00:29]} 52. h4 {[%clk 0:00:17]}  Ra3 {[%clk 0:00:29]} 53. g3 {[%clk 0:00:17]}  Rb3 {[%clk 0:00:29]} 54. Kh3 {[%clk 0:00:18]}  Rb4 {[%clk 0:00:29]} 55. Rc6 {[%clk 0:00:19]}  Ra4 {[%clk 0:00:29]} 56. Rc7+ {[%clk 0:00:19]}  Kh6 {[%clk 0:00:29]} 57. Rd7 {[%clk 0:00:19]}  Ra3 {[%clk 0:00:25]} 58. Rd4 {[%clk 0:00:18]}  Rb3 {[%clk 0:00:19]} 59. Kg4 {[%clk 0:00:19]}  Ra3 {[%clk 0:00:20]} 60. Rf4 {[%clk 0:00:19]}  Rb3 {[%clk 0:00:20]} 61. Rf6 {[%clk 0:00:18]}  Rb4+ {[%clk 0:00:20]} 62. Kf3 {[%clk 0:00:18]}  Rb3+ {[%clk 0:00:21]} 63. Kg2 {[%clk 0:00:18]}  Rb4 {[%clk 0:00:21]} 64. Rd6 {[%clk 0:00:18]}  Ra4 {[%clk 0:00:21]} 65. Kh3 {[%clk 0:00:19]}  Ra3 {[%clk 0:00:21]} 66. Rc6 {[%clk 0:00:18]}  Rb3 {[%clk 0:00:21]} 67. Kg2 {[%clk 0:00:19]}  Rb2+ {[%clk 0:00:20]} 68. Kh3 {[%clk 0:00:15]}  Rb3 {[%clk 0:00:20]} 69. Re6 {[%clk 0:00:16]}  Ra3 {[%clk 0:00:20]} 70. Kg2 {[%clk 0:00:16]}  Ra2+ {[%clk 0:00:20]} 71. Kf3 {[%clk 0:00:17]}  Ra3+ {[%clk 0:00:20]} 72. Re3 {[%clk 0:00:17]}  Ra6 {[%clk 0:00:19]} 73. g4 {[%clk 0:00:18]}  Kg7 {[%clk 0:00:18]} 74. Re7+ {[%clk 0:00:18]}  Kf6 {[%clk 0:00:18]} 75. Re3 {[%clk 0:00:18]}  Ra4 {[%clk 0:00:17]} 76. Kg3 {[%clk 0:00:19]}  Rb4 {[%clk 0:00:17]} 77. Rf3+ {[%clk 0:00:19]}  Kg7 {[%clk 0:00:17]} 78. Ra3 {[%clk 0:00:19]}  Rb7 {[%clk 0:00:17]} 79. Kf4 {[%clk 0:00:18]}  Rb4+ {[%clk 0:00:17]} 80. Kg3 {[%clk 0:00:18]}  Rb7 {[%clk 0:00:18]} 81. Re3 {[%clk 0:00:19]}  Rc7 {[%clk 0:00:18]} 82. Kf4 {[%clk 0:00:19]}  Rb7 {[%clk 0:00:18]} 83. Re5 {[%clk 0:00:19]}  Rc7 {[%clk 0:00:17]} 84. Kg5 {[%clk 0:00:19]}  Rb7 {[%clk 0:00:17]} 85. Rd5 {[%clk 0:00:19]}  Rc7 {[%clk 0:00:18]} 86. Rb5 {[%clk 0:00:19]}  Rd7 {[%clk 0:00:18]} 87. Rb6 {[%clk 0:00:17]}  Rd5+ {[%clk 0:00:18]} 88. Kf4 {[%clk 0:00:17]}  Rc5 {[%clk 0:00:17]} 89. Rb4 {[%clk 0:00:17]}  Rc7 {[%clk 0:00:17]} 90. Re4 {[%clk 0:00:17]}  Rd7 {[%clk 0:00:18]} 91. Re5 {[%clk 0:00:15]}  Rc7 {[%clk 0:00:18]} 92. Kg5 {[%clk 0:00:16]}  Rb7 {[%clk 0:00:18]} 93. h5 {[%clk 0:00:16]}  gxh5 {[%clk 0:00:18]} 94. Kxh5 {[%clk 0:00:17]}  Kg8 {[%clk 0:00:18]} 95. g5 {[%clk 0:00:15]}  Rb8 {[%clk 0:00:18]} 96. Kh6 {[%clk 0:00:16]}  Ra8 {[%clk 0:00:19]} 97. Re7 {[%clk 0:00:16]}  Rb8 {[%clk 0:00:19]} 98. Rg7+ {[%clk 0:00:16]}  Kh8 {[%clk 0:00:20]} 99. Rh7+ {[%clk 0:00:17]}  Kg8 {[%clk 0:00:20]} 100. Rc7 {[%clk 0:00:18]}  Ra8 {[%clk 0:00:21]} 101. Rb7 {[%clk 0:00:18]}  Rc8 {[%clk 0:00:20]} 102. Ra7 {[%clk 0:00:18]}  Rb8 {[%clk 0:00:21]} 103. Kg6 {[%clk 0:00:18]}  Rc8 {[%clk 0:00:21]} 104. Kh6 {[%clk 0:00:18]}  Rb8 {[%clk 0:00:21]} 105. g6 {[%clk 0:00:19]}  Rc8 {[%clk 0:00:22]} 106. Rg7+ {[%clk 0:00:19]}  Kh8 {[%clk 0:00:23]} 107. Rf7 {[%clk 0:00:20]}  Kg8 {[%clk 0:00:23]} 108. Rb7 {[%clk 0:00:21]}  Ra8 {[%clk 0:00:23]} 109. Rc7 {[%clk 0:00:21]}  Rb8 {[%clk 0:00:23]} 110. Rc4 {[%clk 0:00:20]}  Ra8 {[%clk 0:00:24]} 111. Rf4 {[%clk 0:00:20]}  Rb8 {[%clk 0:00:24]} 112. Rf5 {[%clk 0:00:20]}  Ra8 {[%clk 0:00:24]} 113. Rf6 {[%clk 0:00:20]}  Rb8 {[%clk 0:00:25]} 114. g7 {[%clk 0:00:21]}  Rc8 {[%clk 0:00:24]} 115. Kg6 {[%clk 0:00:21]}  Rb8 {[%clk 0:00:25]} 116. Re6 {[%clk 0:00:21]}  Rc8 {[%clk 0:00:25]} 117. Rd6 {[%clk 0:00:22]}  Rb8 {[%clk 0:00:25]} 118. Rc6 {[%clk 0:00:22]}  Rd8 {[%clk 0:00:26]} 119. Ra6 {[%clk 0:00:22]}  Rb8 {[%clk 0:00:26]} 120. Rf6 {[%clk 0:00:22]}  Rc8 {[%clk 0:00:27]} 121. Rf8+ {[%clk 0:00:20]}  Rxf8 {[%clk 0:00:27]} 122. gxf8=B {[%clk 0:00:18]} 1/2-1/2


[Site "https://www.chess.com"]